bitfinex/quotes_ETHUSD_20220310
["timestamp","ask_amount","ask_price","bid_price","bid_amount"]
[1646905327178,0.51111861,2608.5,2608.4,0.00322481]
[1646905327824,0.45936735,2608.5,2608.4,0.00322481]
[1646905328024,0.25,2608.6,2608.3,0.959]
[1646905328226,0.25,2608.6,2608.4,1.12120409]
[1646905329624,0.25,2608.6,2608.4,1.12451409]
[1646905330431,0.25,2608.6,2608.4,1.12120409]
[1646905330729,0.25,2608.6,2608.4,1.12451409]
[1646905331775,0.25,2608.6,2608.4,1.12120409]
[1646905331980,1.19545136,2608.6,2608.4,1.12443621]
[1646905332179,0.54493012,2608.5,2608.4,0.00323212]
[1646905332980,0.54493012,2608.5,2608.3,0.959]
[1646905333179,0.05448638,2608.5,2608.3,0.96223215]
[1646905333381,0.49031149,2608.4,2608.3,0.96223215]
[1646905333980,0.49031149,2608.4,2608.3,0.959]
[1646905335626,0.05448638,2608.5,2608.3,2.04759207]
[1646905335822,0.05448638,2608.5,2608.3,0.959]
[1646905336827,0.05448638,2608.5,2608.3,0.96224356]
[1646905337430,0.25,2608.6,2608.3,0.96224356]
[1646905337627,0.49002627,2608.5,2608.3,0.959]
[1646905337827,0.49002627,2608.5,2608.3,0.909]
[1646905338028,0.49002627,2608.5,2608.3,0.91224356]
[1646905338933,0.49002627,2608.5,2608.3,0.909]
[1646905339173,0.01563539,2608.4,2608.3,0.9122419]
[1646905340181,0.01563539,2608.4,2608.3,0.909]
[1646905342836,0.01526099,2608.5,2608.4,0.00534033]
[1646905345232,0.01526099,2608.5,2608.4,4.56311277]
[1646905345433,0.01526099,2608.5,2608.4,5.11611277]
[1646905345632,0.01526099,2608.5,2608.4,2.61611277]
[1646905345832,0.01526099,2608.5,2608.4,1.61611277]
[1646905346132,0.01526099,2608.5,2608.4,2.61611277]
[1646905346330,0.01526099,2608.5,2608.4,2.20186292]
[1646905346573,0.01526099,2608.5,2608.4,3.20186292]
[1646905346779,0.01526099,2608.5,2608.4,2.20186292]
[1646905346975,0.01526099,2608.5,2608.4,3.20186292]
[1646905347378,0.01526099,2608.5,2608.4,2.20186292]
[1646905347580,0.01526099,2608.5,2608.4,2.61611277]
[1646905347778,0.01526099,2608.5,2608.4,1.61611277]
[1646905348978,0.25,2608.6,2608.4,1.61611277]
[1646905349182,0.25,2608.6,2608.4,0.55834033]
[1646905349781,0.25,2608.6,2608.4,0.00534033]
[1646905349980,0.25,2608.6,2608.4,0.00831622]
[1646905350181,0.25,2608.6,2608.4,0.57197348]
[1646905350422,0.25,2608.6,2608.5,1.04795978]
[1646905350624,0.78147723,2608.6,2608.5,1.04795978]
[1646905350825,0.04835545,2608.5,2608.4,0.00534033]
[1646905351023,0.57983268,2608.5,2608.4,0.00534033]
[1646905351426,0.57983268,2608.5,2608.4,0.00859017]
[1646905352031,0.57983268,2608.5,2608.4,0.00534033]
[1646905352327,0.53147723,2608.5,2608.4,0.00534033]
[1646905352528,0.25,2608.7,2608.4,0.00534033]
[1646905352529,0.53147723,2608.6,2608.4,0.00534033]
[1646905352727,0.53147723,2608.5,2608.4,0.00534033]
[1646905352926,0.53147723,2608.6,2608.4,0.00534033]
[1646905353529,0.53147723,2608.6,2608.4,0.0085902]
[1646905354376,0.53147723,2608.6,2608.4,0.00217421]
[1646905354579,0.53147723,2608.6,2608.2,1.04648744]
[1646905354775,0.53147723,2608.6,2608.4,0.00334069]
[1646905355778,0.53147723,2608.6,2608.3,0.95902]
[1646905358336,0.53147723,2608.6,2608.3,0.96251473]
[1646905359437,0.53147723,2608.6,2608.3,0.95902]
[1646905359641,0.53147723,2608.6,2608.3,0.96251473]
[1646905360437,0.53147723,2608.6,2608.3,0.95902]
[1646905360838,0.53147723,2608.6,2608.3,0.96251473]
[1646905361443,0.53147723,2608.6,2608.3,1.51551473]
[1646905361683,0.53147723,2608.6,2608.4,3.58269008]
[1646905361985,0.25,2608.7,2608.6,74.0]
[1646905362185,0.25,2608.7,2608.6,74.553]
[1646905362385,0.25,2608.7,2608.6,75.553]
[1646905362982,0.71173885,2609.1,2608.8,0.95872]
[1646905363183,0.76182661,2609.1,2608.8,0.95872]
[1646905363981,0.71173885,2609.1,2608.8,0.95872]
[1646905364184,0.05330379,2609.0,2608.7,0.07284738]
[1646905364584,0.76504264,2609.0,2608.7,0.07284738]
[1646905365625,0.71173885,2608.9,2608.7,0.07284738]
[1646905366630,0.71173885,2608.9,2608.7,1.03171738]
[1646905369081,0.71173885,2609.0,2608.7,1.03171738]
[1646905369281,0.71173885,2609.1,2608.7,1.03171738]
[1646905369481,0.71173885,2609.1,2608.7,1.97991738]
[1646905369679,0.71173885,2609.1,2608.7,2.53291738]
[1646905370281,0.71173885,2609.1,2608.7,3.53291738]
[1646905370483,0.71173885,2609.1,2608.7,2.53291738]
[1646905370683,0.71173885,2609.1,2608.7,3.53291738]
[1646905370880,0.71173885,2609.1,2608.7,2.53291738]
[1646905371083,0.71173885,2609.1,2608.7,3.53291738]
[1646905374636,0.71173885,2609.1,2608.7,4.49158738]
[1646905375737,0.71173885,2609.0,2608.7,2.97991738]
[1646905375936,0.71173885,2609.0,2608.7,2.03171738]
[1646905376137,0.71173885,2609.0,2608.7,1.03171738]
[1646905376585,0.71173885,2608.9,2608.7,1.03171738]
[1646905377389,0.71173885,2608.9,2608.7,0.07284738]
[1646905379993,0.70845325,2608.9,2608.8,0.95887]
[1646905381231,0.70845325,2608.9,2608.7,0.07284738]
[1646905381430,0.04805019,2609.1,2608.7,0.07284738]
[1646905381835,0.05338282,2609.3,2608.8,0.95886]
[1646905382034,1.2223,2609.7,2608.9,4.50929643]
[1646905382035,0.57713076,2609.2,2608.9,4.50929643]
[1646905382337,0.57713076,2609.1,2609.0,2.92664643]
[1646905382834,0.57713076,2609.4,2609.0,3.92664643]
[1646905383037,0.57713076,2609.3,2609.1,1.00557343]
[1646905383233,0.57713076,2609.2,2609.0,2.17987355]
[1646905383433,0.04203388,2609.5,2609.1,2.95468786]
[1646905383636,0.54885639,2609.4,2609.1,2.91737]
[1646905383935,0.54885639,2609.3,2609.2,1.03719245]
[1646905384182,0.54885639,2609.7,2609.2,1.03719245]
[1646905384379,0.54885639,2609.7,2609.2,1.99590245]
[1646905384682,0.54885639,2609.7,2609.2,0.95871]
[1646905386080,0.05187018,2609.6,2609.2,0.95871]
[1646905386379,0.54885639,2609.5,2609.2,0.95871]
[1646905390335,1.50000608,2609.5,2609.2,0.95871]
[1646905391134,0.54885639,2609.5,2609.2,0.95871]
[1646905391334,0.54885639,2609.4,2609.2,0.95871]
[1646905391577,1.26217342,2609.3,2609.2,0.95871]
[1646905391783,0.54885639,2609.3,2609.2,0.95871]
[1646905392283,0.71331703,2609.4,2609.2,0.95871]
[1646905393386,0.71331703,2609.4,2609.2,1.9173441]
[1646905393585,0.54885639,2609.5,2609.3,4.60239191]
[1646905393784,1.28528798,2609.5,2609.4,1.91712]
[1646905393982,0.57197095,2609.5,2609.4,1.91712]
[1646905394583,0.71331703,2609.6,2609.4,1.91712]
[1646905394784,0.71331703,2609.5,2609.4,1.91712]
[1646905395083,0.71331703,2609.5,2609.4,2.21712]
[1646905395526,0.57197095,2609.5,2609.4,2.21712]
[1646905396327,0.71331703,2609.5,2609.4,2.21712]
[1646905396537,0.71331703,2609.6,2609.4,2.21712]
[1646905396733,0.71331703,2609.6,2609.4,1.91712]
[1646905396934,1.28491499,2609.5,2609.4,1.91712]
[1646905397134,0.57197095,2609.5,2609.4,1.91712]
[1646905398033,0.95114969,2609.7,2609.4,1.91712]
[1646905398836,1.52312064,2609.7,2609.4,1.91712]
[1646905399079,0.03366162,2609.5,2609.4,1.91712]
[1646905399583,0.60563257,2609.5,2609.4,1.91712]
[1646905400583,0.60563257,2609.5,2609.1,1.91737]
[1646905400584,53.5,2609.4,2609.1,1.91737]
[1646905400782,0.9509896,2609.2,2609.1,1.91737]
[1646905401481,0.9509896,2609.2,2609.1,2.87627]
[1646905402185,0.57197095,2609.2,2609.1,2.87627]
[1646905402382,0.9509896,2609.3,2609.1,2.87627]
[1646905402852,1.52296055,2609.3,2609.1,2.87627]
[1646905403044,0.57197095,2609.2,2609.1,2.87627]
[1646905403244,0.57197095,2609.2,2609.1,1.18029634]
[1646905403444,0.9509896,2609.3,2609.1,1.18029634]
[1646905404245,0.57197095,2609.2,2609.1,1.18029634]
[1646905404548,0.57197095,2609.2,2609.1,1.33364834]
[1646905404749,0.9509896,2609.4,2609.1,1.33364834]
[1646905404950,0.9509896,2609.4,2609.1,1.18029634]
[1646905405351,0.9509896,2609.3,2609.1,1.18029634]
[1646905405549,0.57197095,2609.2,2609.1,1.18029634]
[1646905405749,1.52296055,2609.3,2609.1,1.18029634]
[1646905408383,1.52296055,2609.3,2609.1,1.33365034]
[1646905408785,1.52296055,2609.3,2609.1,1.18029634]
[1646905408983,0.57197095,2609.3,2608.8,1.91801]
[1646905409184,0.95148661,2608.9,2608.8,1.91801]
[1646905409585,1.52321461,2608.9,2608.8,1.91801]
[1646905409983,1.52321461,2608.9,2608.7,0.07284738]
[1646905409984,0.57197095,2608.9,2608.7,0.07284738]
[1646905410429,1.99143366,2608.9,2608.7,0.07284738]
[1646905410634,0.57197095,2608.8,2608.7,0.07284738]
[1646905410833,1.99143366,2608.9,2608.7,0.07284738]
[1646905411235,0.0518696,2608.8,2608.7,0.07284738]
[1646905411443,0.62384055,2608.8,2608.7,0.07284738]
[1646905411735,0.0518696,2608.8,2608.7,0.07284738]
[1646905411931,0.62384055,2608.8,2608.7,0.07284738]
[1646905412133,0.0518696,2608.8,2608.7,0.07284738]
[1646905412337,0.62384055,2608.8,2608.7,0.07284738]
[1646905412634,1.47133231,2608.8,2608.7,0.07284738]
[1646905412934,2.04330326,2608.8,2608.7,0.07284738]
[1646905413135,1.47133231,2608.8,2608.7,0.07284738]
[1646905413335,2.04330326,2608.8,2608.7,0.07284738]
[1646905413534,0.62384055,2608.8,2608.7,0.07284738]
[1646905413939,0.0518696,2608.8,2608.7,0.07284738]
[1646905414180,0.62384055,2608.8,2608.7,0.07284738]
[1646905414479,1.47133231,2608.8,2608.7,0.07284738]
[1646905414684,3.5518696,2608.8,2608.7,0.07284738]
[1646905414986,4.12384055,2608.8,2608.7,0.07284738]
[1646905415385,4.42384055,2608.8,2608.7,0.07284738]
[1646905415588,4.37197095,2608.8,2608.7,0.07284738]
[1646905415787,0.07222663,2608.5,2607.9,2.30189]
[1646905415990,0.71182609,2608.0,2607.1,2.2824]
[1646905416187,0.71182609,2608.0,2607.2,0.76268055]
[1646905416387,0.71182609,2607.9,2607.6,0.153433]
[1646905416590,0.57197095,2607.8,2607.0,7.32]
[1646905416788,1.4855625,2607.7,2607.1,0.76212071]
[1646905416990,0.57197095,2607.6,2607.1,0.76212071]
[1646905417189,0.57197095,2607.6,2607.3,0.00325869]
[1646905417388,0.57197095,2607.5,2607.3,0.00325869]
[1646905417588,0.57197095,2607.4,2607.3,1.92232869]
[1646905417839,0.57197095,2607.9,2607.3,1.92232869]
[1646905418027,1.09622609,2608.0,2607.3,1.92232869]
[1646905418028,1.28379704,2607.8,2607.3,0.00325869]
[1646905418228,1.66819704,2607.7,2606.6,3.5]
[1646905418427,1.66819704,2607.7,2606.7,0.75654658]
[1646905418428,0.3844,2607.5,2606.7,0.75654658]
[1646905418631,0.57197095,2607.4,2607.2,0.00308361]
[1646905418833,0.57197095,2607.3,2607.2,0.00308361]
[1646905419032,1.54336239,2607.3,2607.2,0.00308361]
[1646905419431,1.54336239,2607.3,2606.7,0.95978]
[1646905419633,0.57197095,2607.2,2606.7,0.95978]
[1646905419833,0.57197095,2607.2,2607.1,0.00308366]
[1646905420734,0.57197095,2607.2,2607.0,0.9597]
[1646905420935,2.47192609,2607.8,2607.0,1.91937]
[1646905421134,0.82114608,2607.7,2607.0,1.91937]
[1646905421337,0.82114608,2607.7,2607.0,0.92261084]
[1646905421577,0.553,2607.8,2606.8,3.83867]
[1646905421578,0.82114608,2607.6,2606.8,3.83867]
[1646905421784,0.94261981,2607.4,2606.8,1.91925]
[1646905421981,0.82114608,2607.3,2606.8,1.91925]
[1646905422182,0.82114608,2607.3,2607.2,0.00292471]
[1646905423083,0.82114608,2607.3,2606.8,1.91925]
[1646905423282,0.82114608,2607.3,2607.1,0.00311505]
[1646905423582,0.0006248,2606.8,2606.6,1.91942]
[1646905423782,0.0006248,2606.8,2606.6,2.91942]
[1646905423983,0.0006248,2606.8,2606.5,6.12800997]
[1646905424185,0.0006248,2606.8,2606.5,5.93630997]
[1646905424984,0.0006248,2606.8,2606.5,7.85576907]
[1646905425188,0.0006248,2606.8,2606.6,0.95971]
[1646905426033,0.0006248,2606.8,2606.7,3.5]
[1646905426232,0.0006248,2606.8,2606.7,1.0]
[1646905426639,0.0006248,2606.8,2606.6,7.75134789]
[1646905426835,0.0006248,2606.8,2606.6,4.3706598]
[1646905427037,0.0006248,2606.8,2606.6,5.33361092]
[1646905427236,0.0006248,2606.8,2606.6,8.83361092]
[1646905427936,0.0006248,2606.8,2606.6,3.11122]
[1646905428136,0.0006248,2606.8,2606.6,1.92266115]
[1646905428537,0.0006248,2606.8,2606.6,0.96295115]
[1646905428935,0.0006248,2606.8,2606.6,0.95971]
[1646905429182,0.0006248,2606.8,2606.3,10.61017]
[1646905429183,0.0006248,2606.8,2606.3,7.5118]
[1646905429586,0.0006248,2606.8,2606.3,7.32]
[1646905429786,0.0006248,2606.8,2606.2,2.11143]
[1646905429984,1.10252,2606.7,2606.2,0.1918]
[1646905430186,1.1448283,2606.7,2606.0,0.1918]
[1646905430384,1.1448283,2606.7,2605.9,1.141]
[1646905431386,3.55008406,2606.6,2605.8,0.96006]
[1646905431586,0.04622182,2606.5,2605.9,0.1918]
[1646905431989,0.04622182,2606.5,2605.8,1.15186]
[1646905432194,0.0006248,2606.8,2605.8,1.15186]
[1646905432391,0.0006248,2606.8,2605.9,2.30438]
[1646905432589,0.0006248,2606.8,2606.2,0.95975]
[1646905432838,0.0006248,2606.8,2606.2,1.25975]
[1646905433030,0.0006248,2606.8,2606.2,1.2632356]
[1646905433532,0.0006248,2606.8,2606.3,0.95982]
[1646905434134,0.0006248,2606.8,2606.4,0.00348548]
[1646905434736,0.0006248,2606.8,2606.4,1.92300548]
[1646905435033,0.0006248,2606.8,2606.3,0.95982]
[1646905435232,0.0006248,2606.8,2606.3,1.0]
[1646905435433,0.0462751,2606.8,2606.5,0.00348542]
[1646905436234,0.0006248,2606.8,2606.4,0.95992]
[1646905436684,0.0006248,2606.8,2606.5,0.96301681]
[1646905437386,0.0006248,2606.8,2606.5,0.95985]
[1646905437586,0.0006248,2606.8,2606.5,2.87943]
[1646905437786,0.0006248,2606.8,2606.5,2.96902522]
[1646905437985,0.0006248,2606.8,2606.5,3.96902522]
[1646905438585,0.0006248,2606.8,2606.5,3.96587769]
[1646905438786,0.0006248,2606.8,2606.6,0.959684]
[1646905439991,0.0006248,2606.8,2606.6,0.95977]
[1646905440191,0.0006248,2606.8,2606.6,0.96294853]
[1646905441028,0.0006248,2606.8,2606.6,0.95977]
[1646905441431,0.0006248,2606.8,2606.6,0.962964]
[1646905441833,0.0006248,2606.8,2606.6,2.882304]
[1646905442033,0.0006248,2606.8,2606.6,3.882304]
[1646905442234,0.0006248,2606.8,2606.6,2.91943]
[1646905442637,0.04215673,2607.4,2606.8,0.95961]
[1646905442835,3.4713,2608.2,2607.0,0.46195934]
[1646905443033,0.3833,2608.4,2607.0,0.46195934]
[1646905443034,0.3833,2608.4,2607.2,0.3844]
[1646905443234,0.3833,2608.4,2607.2,1.31694451]
[1646905443433,0.3833,2608.4,2607.6,0.3844]
[1646905443636,0.3833,2608.4,2607.7,2.30275]
[1646905443834,0.3833,2608.4,2608.0,0.9590907]
[1646905444082,0.07222663,2608.5,2608.1,0.0785139]
[1646905444281,0.07222663,2608.5,2608.0,4.15818093]
[1646905444480,0.07222663,2608.5,2608.0,5.15818093]
[1646905444680,0.07222663,2608.5,2608.1,0.959]
[1646905445680,0.07222663,2608.5,2608.2,0.3844]
[1646905445881,0.07222663,2608.5,2608.3,0.95898]
[1646905446082,0.07222663,2608.5,2608.4,0.95897]
[1646905446280,0.07222663,2608.5,2608.4,1.25897]
[1646905446481,0.07222663,2608.5,2608.4,1.64337]
[1646905447486,0.07222663,2608.5,2608.4,1.796737]
[1646905447933,0.07222663,2608.5,2608.4,1.64337]
[1646905448729,0.07222663,2608.5,2608.4,2.62347]
[1646905449128,0.07222663,2608.5,2608.4,3.62347]
[1646905450228,0.65159154,2609.5,2608.5,50.3844]
[1646905450428,1.7493305,2609.6,2609.0,0.95898]
[1646905450429,0.5894305,2609.6,2609.0,0.95898]
[1646905451429,0.5894305,2609.6,2609.2,0.95885]
[1646905451684,0.5894305,2609.6,2609.2,2.87659]
[1646905451889,0.04495844,2609.5,2609.2,1.91774]
[1646905453886,0.17960487,2609.5,2609.2,1.91774]
[1646905454688,0.18282225,2609.5,2609.2,1.91774]
[1646905455429,0.18282225,2609.5,2609.2,1.91135439]
[1646905455629,0.13464643,2609.5,2609.2,1.91135439]
[1646905455836,0.1379421,2609.5,2609.2,1.91135439]
[1646905456835,0.13464643,2609.5,2609.2,1.91135439]
[1646905457035,0.1379421,2609.5,2609.2,1.91135439]
[1646905458037,0.13464643,2609.5,2609.2,1.91135439]
[1646905458236,0.1379421,2609.5,2609.2,1.91135439]
[1646905459282,0.13464643,2609.5,2609.2,1.91135439]
[1646905459488,0.1378654,2609.5,2609.2,1.91135439]
[1646905460097,0.0501851,2609.4,2608.9,0.1915]
[1646905460290,1.14053159,2609.4,2608.4,0.1915]
[1646905460490,0.043742,2609.3,2608.7,0.95917]
[1646905460889,0.88632445,2609.2,2608.7,0.95917]
[1646905461095,0.0490238,2609.1,2608.7,0.95917]
[1646905461490,3.6378654,2609.5,2608.7,0.95917]
[1646905461491,0.84059292,2609.5,2608.7,0.95917]
[1646905461694,0.05088955,2609.4,2608.8,0.3]
[1646905461890,0.00321894,2609.2,2608.8,0.3]
[1646905462090,0.00321894,2609.2,2608.7,0.95886]
[1646905462290,0.00321894,2609.2,2608.8,0.3]
[1646905462490,0.00321894,2609.2,2608.9,2.87682]
[1646905462692,0.00321894,2609.2,2609.0,0.07476208]
[1646905462934,1.18462983,2609.4,2609.0,0.07476208]
[1646905463134,0.00323024,2609.2,2609.0,0.07476208]
[1646905464039,1.18462983,2609.4,2609.0,1.03361208]
[1646905464241,0.00323031,2609.2,2609.0,0.29652524]
[1646905464440,1.18786014,2609.2,2609.0,0.29652524]
[1646905464642,0.00323031,2609.2,2609.0,0.29652524]
[1646905465241,1.16197958,2609.6,2609.0,0.29652524]
[1646905465442,0.00323031,2609.2,2609.1,0.95885]
[1646905466246,0.00323031,2609.2,2609.1,1.25885]
[1646905466693,1.16197958,2609.4,2609.2,0.9588]
[1646905466891,0.58880116,2609.7,2609.2,0.9588]
[1646905466892,0.00322865,2609.3,2609.2,0.9588]
[1646905467491,1.16155325,2609.6,2609.2,0.9588]
[1646905467691,0.58880116,2609.7,2609.2,0.9588]
[1646905467891,0.0032286,2609.4,2609.2,0.9588]
[1646905468290,0.0032286,2609.4,2609.2,1.91751]
[1646905468490,0.0032286,2609.4,2609.2,2.47051]
[1646905468690,0.58880116,2609.7,2609.2,2.47051]
[1646905468895,0.58880116,2609.7,2609.4,0.95869]
[1646905469094,0.58880116,2609.7,2609.4,1.91738]
[1646905469296,0.58880116,2609.7,2609.4,3.83475]
[1646905469493,0.58880116,2609.7,2609.4,4.83475]
[1646905469693,0.58880116,2609.7,2609.5,0.95869]
[1646905470196,0.59202985,2609.7,2609.5,0.95869]
[1646905471234,0.58880116,2609.7,2609.5,0.95869]
[1646905471435,0.59202982,2609.7,2609.5,0.95869]
[1646905472439,0.58880116,2609.7,2609.5,0.95869]
[1646905472637,0.59202982,2609.7,2609.5,0.95869]
[1646905473039,0.00322866,2609.7,2609.5,0.95869]
[1646905473240,0.00322866,2609.7,2609.5,1.25869]
[1646905473440,0.00322866,2609.7,2609.6,0.07552408]
[1646905473639,1.16211918,2610.0,2609.6,1.03397848]
[1646905473839,0.04434014,2610.4,2609.7,0.95845]
[1646905474086,0.01291254,2610.1,2609.8,0.95847]
[1646905474284,1.1617829,2610.0,2609.8,0.95847]
[1646905475084,0.00322847,2610.0,2609.8,0.95847]
[1646905475285,0.00322847,2610.0,2609.9,0.95852]
[1646905475885,1.16195087,2610.3,2609.9,0.95852]
[1646905476285,0.00322845,2610.1,2609.9,0.95852]
[1646905476485,1.16517932,2610.1,2609.9,1.917022]
[1646905476691,1.16195087,2610.0,2609.9,1.917022]
[1646905477289,1.16195087,2610.4,2609.9,1.917022]
[1646905477489,0.00322844,2610.1,2609.9,1.917022]
[1646905477690,0.00322844,2610.1,2609.9,0.95852]
[1646905478335,1.86789736,2610.4,2609.9,0.95852]
[1646905478533,1.16195087,2610.3,2609.9,0.95852]
[1646905478735,1.22350653,2610.6,2609.9,0.95852]
[1646905478736,0.00322842,2610.1,2609.9,0.95852]
[1646905479133,0.04278248,2610.0,2609.9,0.95852]
[1646905479337,0.06794462,2610.0,2609.9,0.95852]
[1646905479735,1.22989549,2610.0,2609.9,0.95852]
[1646905480339,1.19585922,2610.0,2609.9,0.95852]
[1646905483192,0.70594649,2610.3,2609.9,0.95852]
[1646905483392,0.00292486,2610.1,2610.0,4.79232]
[1646905483791,0.00292486,2610.1,2610.0,6.09232]
[1646905484291,0.00292486,2610.1,2610.0,4.39714594]
[1646905484595,0.70594649,2610.4,2610.2,0.95845]
[1646905485091,0.70594649,2610.5,2610.2,0.95845]
[1646905485934,0.70594649,2610.4,2610.2,0.95845]
[1646905486936,0.70594649,2610.3,2610.2,0.95845]
[1646905487140,1.00270289,2610.6,2610.2,0.95845]
[1646905487141,0.70892019,2610.4,2610.2,0.95845]
[1646905487339,0.0029737,2610.4,2610.2,0.95845]
[1646905487537,0.71009467,2610.3,2610.2,0.95845]
[1646905488339,0.05330457,2610.4,2610.1,0.95845]
[1646905488638,0.99969588,2610.2,2610.0,0.22174594]
[1646905489283,0.94910146,2610.1,2610.0,0.22174594]
[1646905490485,1.11495228,2610.2,2610.0,0.22174594]
[1646905490686,0.04402408,2610.1,2610.0,0.22174594]
[1646905491894,0.04402408,2610.1,2609.9,1.91737]
[1646905493030,0.94778196,2610.0,2609.9,1.91737]
[1646905493229,0.0469937,2610.1,2609.9,1.91737]
[1646905494035,0.94788515,2610.0,2609.9,1.91737]
[1646905494234,0.99487885,2610.1,2609.9,1.91737]
[1646905494436,0.94788515,2610.0,2609.9,1.91737]
[1646905501538,0.04699523,2610.1,2609.9,1.91737]
[1646905501738,4.97064742,2610.1,2609.9,1.91737]
[1646905501936,3.54131211,2610.0,2609.9,1.91737]
[1646905502136,3.5,2610.0,2609.9,1.91737]
[1646905502735,1.42365219,2610.0,2609.9,1.91737]
[1646905504286,1.42365219,2610.0,2609.9,0.22182715]
[1646905506090,1.17409289,2610.0,2609.9,0.22182715]
[1646905506492,1.90161328,2610.1,2609.9,0.22182715]
[1646905506696,1.17409289,2610.0,2609.9,0.22182715]
[1646905507704,2.59908177,2610.0,2609.9,0.22182715]
[1646905507931,1.42498888,2610.0,2609.9,0.22182715]
[1646905508732,1.17409289,2610.0,2609.9,0.22182715]
[1646905509132,0.00297118,2610.1,2609.9,0.22182715]
[1646905509332,1.90161327,2610.1,2609.9,4.72925429]
[1646905509532,1.17409289,2610.0,2609.9,4.72925429]
[1646905509736,1.52034955,2610.4,2609.9,4.72925429]
[1646905509737,1.47389532,2610.7,2610.2,4.5]
[1646905509942,1.48577817,2610.5,2610.3,88.0]
[1646905510143,0.71268057,2610.4,2610.3,92.06570666]
[1646905510343,0.71274772,2610.6,2610.5,0.0856112]
[1646905510534,0.23757079,2611.0,2610.7,0.08845998]
[1646905510736,0.3831,2612.1,2610.9,6.913]
[1646905510737,0.38446002,2612.1,2610.9,6.913]
[1646905510937,0.71181075,2611.1,2611.0,121.07559997]
[1646905511135,0.71176995,2611.3,2611.2,0.08929289]
[1646905511339,0.94908703,2611.4,2611.2,0.08929289]
[1646905511340,0.94903797,2611.8,2611.4,2.37790534]
[1646905511587,0.71177848,2611.5,2611.4,1.99350534]
[1646905511791,0.71177848,2611.5,2611.4,11.37511954]
[1646905511792,0.82433395,2611.5,2611.4,11.37511954]
[1646905511990,0.82433395,2611.5,2611.4,14.87511954]
[1646905512290,0.71177848,2611.6,2611.4,15.87511954]
[1646905512491,0.71177848,2611.6,2611.5,10.413]
[1646905512692,1.46392784,2611.7,2611.5,10.966]
[1646905512893,0.75214936,2611.6,2611.5,8.466]
[1646905513691,0.75214936,2611.6,2611.5,11.966]
[1646905514091,0.75214936,2611.6,2611.5,8.466]
[1646905514693,0.75214936,2611.6,2611.5,12.97342714]
[1646905515833,0.75214936,2611.6,2611.5,16.47342714]
[1646905516233,0.75214936,2611.6,2611.5,12.97342714]
[1646905516639,0.75214936,2611.6,2611.5,16.47342714]
[1646905516839,0.75214936,2611.6,2611.5,17.43124714]
[1646905517038,0.75214936,2611.6,2611.5,13.93124714]
[1646905517439,0.75214936,2611.6,2611.5,5.06042714]
[1646905519284,0.75214936,2611.6,2611.5,6.06042714]
[1646905519885,0.75214936,2611.6,2611.5,9.94482714]
[1646905520086,0.75214936,2611.6,2611.5,10.24482714]
[1646905520286,0.75214936,2611.6,2611.5,6.74482714]
[1646905520485,0.75214936,2611.6,2611.5,6.36042714]
[1646905523542,0.00303588,2611.7,2611.5,6.74482714]
[1646905523738,0.00303588,2611.7,2611.6,3.8844]
[1646905523939,0.00303588,2611.7,2611.6,0.553]
[1646905524140,0.75456383,2612.0,2611.6,9.56042714]
[1646905524337,0.75456383,2611.9,2611.6,8.82421825]
[1646905524538,1.08255465,2612.1,2611.7,0.553]
[1646905524539,0.75456383,2611.8,2611.7,0.553]
[1646905525340,0.75456383,2611.8,2611.7,1.51089]
[1646905525841,0.75456383,2611.8,2611.7,5.31089]
[1646905526047,0.75456383,2611.8,2611.7,5.69529]
[1646905526341,0.75456383,2611.8,2611.7,3.19529]
[1646905526793,0.00350553,2611.9,2611.7,3.19529]
[1646905527194,0.00350553,2611.9,2611.7,1.81089]
[1646905527394,0.00350553,2611.9,2611.7,3.19529]
[1646905527794,0.70764151,2612.1,2611.7,2.81089]
[1646905527993,0.0035055,2611.9,2611.7,2.81089]
[1646905528194,0.0035055,2611.9,2611.7,1.81089]
[1646905528396,0.0035055,2611.9,2611.7,2.81089]
[1646905528597,0.0035055,2611.9,2611.7,1.81089]
[1646905528795,0.0035055,2611.9,2611.7,6.31089]
[1646905528995,0.70764151,2612.0,2611.7,2.81089]
[1646905529199,0.0035055,2611.9,2611.7,6.31089]
[1646905529395,41.0,2611.8,2611.6,1.61571]
[1646905529598,41.0,2611.8,2611.3,2.8734]
[1646905529599,0.71812075,2611.7,2611.3,2.8734]
[1646905529796,0.71812075,2611.7,2611.5,0.153225]
[1646905530197,0.0453796,2612.1,2611.4,0.95802]
[1646905530445,0.00350568,2611.6,2611.4,0.95802]
[1646905531345,0.73926506,2611.7,2611.4,0.95802]
[1646905531545,0.00328854,2611.6,2611.4,0.95802]
[1646905532554,0.73926506,2611.7,2611.4,0.95802]
[1646905532850,0.00328854,2611.6,2611.4,0.95802]
[1646905533753,0.73926506,2611.7,2611.4,0.95802]
[1646905533952,0.00328854,2611.6,2611.4,0.95802]
[1646905534588,0.00328854,2611.6,2611.5,4.50742714]
[1646905534787,0.00328854,2611.6,2611.5,5.50742714]
[1646905534987,0.73926506,2611.7,2611.5,5.50742714]
[1646905535287,0.00324466,2611.6,2611.5,5.50742714]
[1646905536088,0.73926506,2611.7,2611.5,5.50742714]
[1646905536392,0.74250969,2611.7,2611.5,5.50742714]
[1646905536992,0.74250969,2611.7,2611.5,4.50742714]
[1646905537493,0.73926506,2611.7,2611.5,4.50742714]
[1646905537693,0.73926506,2611.7,2611.5,5.50742714]
[1646905537694,0.73926506,2611.6,2611.5,5.50742714]
[1646905537942,0.00324461,2611.7,2611.5,5.50742714]
[1646905538145,0.00324461,2611.7,2611.6,0.07376139]
[1646905538543,0.77100439,2612.0,2611.6,0.07376139]
[1646905538743,0.77100439,2611.9,2611.6,1.03170139]
[1646905538948,0.00324759,2611.8,2611.6,1.03170139]
[1646905539145,0.00324759,2611.8,2611.6,0.95794]
[1646905539743,0.77100439,2611.9,2611.7,5.75371357]
[1646905539947,0.77100439,2612.0,2611.8,2.46848]
[1646905540144,0.77116025,2611.9,2611.8,2.46848]
[1646905540346,0.77116025,2612.1,2611.8,2.46848]
[1646905541145,0.77116025,2612.0,2611.8,2.46848]
[1646905541346,0.77116025,2611.9,2611.8,2.46848]
[1646905541589,0.00324743,2612.1,2611.8,2.46848]
[1646905541992,0.77440768,2612.1,2611.8,2.55843399]
[1646905542190,0.72476627,2612.5,2611.8,2.55843399]
[1646905542191,0.77116025,2612.0,2611.8,2.55843399]
[1646905542391,0.71177848,2612.5,2611.8,2.55843399]
[1646905542392,0.77116025,2611.9,2611.8,3.55843399]
[1646905542590,0.77116025,2611.9,2611.8,2.55843399]
[1646905542792,0.00324699,2612.1,2611.8,3.55843399]